lending/lending_fUSD_20251022
["ID","MTS","AMOUNT","RATE_DAILY","PERIOD"]
[392070407,1761136139030,-938.33,0.00044163,120]
[392070408,1761136139078,-500.0,0.00044383,120]
[392070409,1761136139121,-1178.29,0.00044383,120]
[392070410,1761136139165,-856.57,0.00044437,120]
[392070411,1761136139207,-938.33,0.00044437,120]
[392070412,1761136139250,-500.0,0.00044657,120]
[392070413,1761136139292,-1178.29,0.00044657,120]
[392070414,1761136139335,-856.57,0.00044711,120]
[392070415,1761136139377,-938.33,0.00044711,120]
[392070416,1761136139432,-48023.91799501,0.000449,120]
[392070417,1761136139475,-500.0,0.00044931,120]
[392070418,1761136139515,-1178.29,0.00044931,120]
[392070419,1761136139554,-856.57,0.00044985,120]
[392070420,1761136139593,-1614198.67987057,0.00045,120]
[392070421,1761136139632,-634.35803386,0.00045,120]
[392070422,1761136139671,-250.0,0.00045,30]
[392070423,1761136139708,-250.0,0.00045,30]
[392070424,1761136139746,-250.0,0.00045,30]
[392070425,1761136139784,-250.0,0.00045,30]
[392070426,1761136139823,-250.0,0.00045,30]
[392070427,1761136139930,-250.0,0.00045,30]
[392070428,1761136139976,-250.0,0.00045,30]
[392070429,1761136140017,-250.0,0.00045,30]
[392070430,1761136140057,-250.0,0.00045,30]
[392070431,1761136140097,-176.0,0.00045,30]
[392070432,1761136140136,-194.42250572,0.00045,30]
[392070433,1761136140178,-2500.0,0.00045,120]
[392070434,1761136140221,-156.258713,0.00045,120]
[392070435,1761136140261,-160.51235,0.00045,30]
[392070436,1761136140303,-152.252612,0.00045,120]
[392070437,1761136140345,-155.446833,0.00045,120]
[392070438,1761136140386,-151.0,0.00045,120]
[392070439,1761136140426,-155.810945,0.00045,120]
[392070440,1761136140464,-154.242662,0.00045,120]
[392070441,1761136140503,-156.786455,0.00045,120]
[392070442,1761136140541,-155.145947,0.00045,120]
[392070443,1761136140580,-216.351168,0.00045,120]
[392070444,1761136140617,-151.392693,0.00045,120]
[392070445,1761136140659,-155.165276,0.00045,120]
[392070446,1761136140698,-152.930209,0.00045,120]
[392070447,1761136140736,-155.684519,0.00045,120]
[392070448,1761136140775,-155.328937,0.00045,120]
[392070449,1761136140811,-151.0,0.00045,120]
[392070450,1761136140845,-151.0,0.00045,120]
[392070451,1761136140883,-157.027548,0.00045,120]
[392070452,1761136140921,-153.266632,0.00045,120]
[392070453,1761136140960,-151.0,0.00045,120]
[392070454,1761136140999,-151.0,0.00045,120]
[392070455,1761136141037,-151.0,0.00045,120]
[392070456,1761136141077,-151.0,0.00045,120]
[392070457,1761136141115,-151.0,0.00045,120]
[392070458,1761136141156,-151.0,0.00045,120]
[392070459,1761136141197,-151.0,0.00045,120]
[392070460,1761136141237,-151.0,0.00045,120]
[392070461,1761136141278,-156.318341,0.00045,120]
[392070462,1761136141327,-155.555443,0.00045,120]
[392070463,1761136141367,-153.566723,0.00045,120]
[392070464,1761136141408,-161.302127,0.00045,45]
[392070465,1761136141448,-156.650437,0.00045,120]
[392070466,1761136141488,-151.778939,0.00045,120]
[392070467,1761136141529,-151.0,0.00045,120]
[392070468,1761136141570,-153.410233,0.00045,120]
[392070469,1761136141611,-153.313496,0.00045,120]
[392070470,1761136141653,-153.07363,0.00045,120]
[392070471,1761136141692,-153.237948,0.00045,120]
[392070472,1761136141730,-153.979937,0.00045,120]
[392070473,1761136141768,-153.16293,0.00045,30]
[392070474,1761136141808,-188.680249,0.00045,120]
[392070475,1761136141849,-415.63973003,0.00045,30]
[392070476,1761136141888,-20009.1979805,0.00045,30]
[392070477,1761136141928,-20009.1979805,0.00045,30]
[392070478,1761136141970,-151.0,0.00045,120]
[392070479,1761136142011,-275.683668,0.00045,120]
[392070480,1761136142052,-155.339008,0.00045,120]
[392070481,1761136142092,-166.553835,0.00045,120]
[392070482,1761136142130,-151.0,0.00045,120]
[392070483,1761136142169,-155.829924,0.00045,120]
[392070484,1761136142210,-151.0,0.00045,120]
[392070485,1761136142252,-180.020172,0.00045,120]
[392070486,1761136142292,-153.512238,0.00045,120]
[392070487,1761136142332,-1196.6680243,0.00045,120]
[392070488,1761136142373,-1856.0,0.00045,120]
[392070489,1761136142411,-32068.63,0.00045,120]
[392070490,1761136142450,-156.760659,0.00045,120]
[392070491,1761136142489,-158.583427,0.00045,120]
[392070492,1761136142529,-151.0,0.00045,120]
[392070493,1761136142568,-151.0,0.00045,120]
[392070494,1761136142608,-151.0,0.00045,120]
[392070495,1761136142649,-151.0,0.00045,120]
[392070496,1761136142691,-151.0,0.00045,120]
[392070497,1761136142733,-151.0,0.00045,120]
[392070498,1761136142773,-151.0,0.00045,120]
[392070499,1761136142811,-167.510446,0.00045,120]
[392070500,1761136142852,-151.0,0.00045,120]
[392070501,1761136142892,-174.486188,0.00045,120]
[392070502,1761136142933,-151.0,0.00045,120]
[392070503,1761136142975,-151.0,0.00045,120]
[392070504,1761136143015,-1856.0,0.00045,120]
[392070505,1761136143058,-151.0,0.00045,120]
[392070506,1761136143099,-261.531251,0.00045,120]
[392070507,1761136143141,-272.7454,0.00045,120]
[392070508,1761136143183,-151.0,0.00045,120]
[392070509,1761136143225,-151.0,0.00045,120]
[392070510,1761136143269,-151.0,0.00045,120]
[392070511,1761136143310,-151.0,0.00045,120]
[392070512,1761136143355,-151.0,0.00045,120]
[392070513,1761136143401,-151.0,0.00045,120]
[392070514,1761136143445,-151.0,0.00045,120]
[392070515,1761136143491,-151.0,0.00045,120]
[392070516,1761136143534,-151.0,0.00045,120]
[392070517,1761136143575,-151.0,0.00045,120]
[392070518,1761136143616,-158.302613,0.00045,120]
[392070519,1761136143658,-163.189812,0.00045,120]
[392070520,1761136143701,-155.953113,0.00045,120]
[392070521,1761136143740,-162.984859,0.00045,120]
[392070522,1761136143780,-153.084569,0.00045,120]
[392070523,1761136143820,-151.0,0.00045,120]
[392070524,1761136143861,-151.0,0.00045,120]
[392070525,1761136143903,-155.55942,0.00045,120]
[392070526,1761136143944,-155.045588,0.00045,120]
[392070527,1761136143984,-1617.14924885,0.00045,120]
[392070528,1761136144025,-158.283436,0.00045,120]
[392070529,1761136144064,-151.0,0.00045,30]
[392070530,1761136144105,-151.0,0.00045,30]
[392070531,1761136144147,-151.0,0.00045,30]
[392070532,1761136144187,-151.0,0.00045,30]
[392070533,1761136144228,-151.0,0.00045,30]
[392070534,1761136144407,-151.0,0.00045,30]
[392070535,1761136144449,-151.0,0.00045,30]
[392070536,1761136144491,-151.0,0.00045,30]
[392070537,1761136144534,-151.0,0.00045,30]
[392070538,1761136144579,-151.0,0.00045,30]
[392070539,1761136144620,-151.0,0.00045,30]
[392070540,1761136144662,-151.0,0.00045,30]
[392070541,1761136144702,-151.0,0.00045,30]
[392070542,1761136144742,-151.0,0.00045,30]
[392070543,1761136144780,-151.0,0.00045,30]
[392070544,1761136144824,-151.0,0.00045,30]
[392070545,1761136144863,-151.0,0.00045,30]
[392070546,1761136144901,-151.0,0.00045,30]
[392070547,1761136144941,-20059.55864825,0.00045,60]
[392070548,1761136144983,-218.158312,0.00045,30]
[392070549,1761136145024,-151.000009,0.00045,120]
[392070550,1761136145065,-151.0,0.00045,120]
[392070551,1761136145106,-151.0,0.00045,120]
[392070552,1761136145147,-166.191257,0.00045,120]
[392070553,1761136145188,-154.579708,0.00045,120]
[392070554,1761136145230,-151.0,0.00045,120]
[392070555,1761136145270,-151.0,0.00045,120]
[392070556,1761136145312,-151.0,0.00045,120]
[392070557,1761136145359,-151.0,0.00045,120]
[392070558,1761136145402,-151.0,0.00045,120]
[392070559,1761136145441,-151.0,0.00045,120]
[392070560,1761136145481,-151.0,0.00045,120]
[392070561,1761136145520,-151.0,0.00045,120]
[392070562,1761136145558,-211.069969,0.00045,120]
[392070563,1761136145597,-189.213063,0.00045,120]
[392070564,1761136145634,-155.243289,0.00045,120]
[392070565,1761136145676,-153.722534,0.00045,120]
[392070566,1761136145715,-154.116506,0.00045,120]
[392070567,1761136145753,-30169.1111078,0.00045,120]
[392070568,1761136145790,-4026.9090615,0.00045,120]
[392070569,1761136145827,-1091.0,0.00045,30]
[392070570,1761136145863,-1091.0,0.00045,30]
[392070571,1761136145901,-1000000.0,0.0004501,120]
[392070572,1761136145938,-500000.0,0.000451,120]
[392070573,1761136145976,-950000.0,0.000452,120]
[392070574,1761136146015,-500.0,0.00045205,120]
[392070575,1761136146052,-943.68,0.00045205,120]
[392070576,1761136146090,-500.0,0.00045205,120]
[392070577,1761136146126,-1070.04,0.00045205,120]
[392070578,1761136146163,-981.17,0.00045205,120]
[392070579,1761136146199,-813.58,0.00045205,120]
[392070580,1761136146235,-500.0,0.00045205,120]
[392070581,1761136146271,-500.0,0.00045205,120]
[392070582,1761136146307,-500.0,0.00045205,120]
[392070583,1761136146343,-1065.48,0.00045205,120]
[392070584,1761136146379,-500.0,0.00045205,120]
[392070585,1761136146416,-548.57,0.00045205,120]
[392070586,1761136146452,-500.0,0.00045205,120]
[392070587,1761136146492,-500.0,0.00045205,120]
[392070588,1761136146528,-500.0,0.00045205,120]
[392070589,1761136146564,-652.14,0.00045205,120]
[392070590,1761136146600,-500.0,0.00045205,120]
[392070591,1761136146637,-545.64283092,0.00045205,120]
[392070592,1761136146674,-500.0,0.00045205,120]
[392070593,1761136146712,-1160.59,0.00045205,120]
[392070594,1761136146747,-500.0,0.00045205,120]
[392070595,1761136146783,-630.1,0.00045205,120]
[392070596,1761136146819,-500.0,0.00045205,120]
[392070597,1761136146855,-517.08457028,0.00045205,120]
[392070598,1761136146892,-790.48,0.00045205,120]
[392070599,1761136146929,-500.0,0.00045205,120]
[392070600,1761136146968,-501.67,0.00045205,120]
[392070601,1761136147006,-500.0,0.00045205,120]
[392070602,1761136147044,-500.0,0.00045205,120]
[392070603,1761136147082,-500.0,0.00045205,120]
[392070604,1761136147129,-500.0,0.00045205,120]
[392070605,1761136147169,-500.0,0.00045205,120]
[392070606,1761136147207,-500.0,0.00045205,120]
[392070607,1761136147245,-500.0,0.00045205,120]
[392070608,1761136147282,-500.0,0.00045205,120]
[392070609,1761136147321,-410.68196558,0.00045205,120]
[392070610,1761136147363,-401.73580548,0.00045205,120]
[392070611,1761136147403,-500.0,0.00045205,120]
[392070612,1761136147441,-500.0,0.00045205,120]
[392070613,1761136147479,-500.0,0.00045205,120]
[392070614,1761136147515,-500.0,0.00045205,120]
[392070615,1761136147553,-500.0,0.00045205,120]
[392070616,1761136147592,-425.48272051,0.00045205,120]
[392070617,1761136147630,-500.0,0.00045205,120]
[392070618,1761136147670,-500.0,0.00045205,120]
[392070619,1761136147708,-432.17319631,0.00045205,120]
[392070620,1761136147745,-500.0,0.00045205,120]
[392070621,1761136147783,-1774.5,0.00045205,60]
[392070622,1761136147820,-500.0,0.00045205,120]
[392070623,1761136148072,-500.0,0.00045205,120]
[392070624,1761136148115,-500.0,0.00045205,120]
[392070625,1761136148157,-500.0,0.00045205,120]
[392070626,1761136148198,-911.59,0.00045205,120]
[392070627,1761136148239,-774.69,0.00045205,120]
[392070628,1761136148278,-565.62,0.00045205,120]
[392070629,1761136148322,-500.0,0.00045205,120]
[392070630,1761136148370,-649.37,0.00045205,30]
[392070631,1761136148418,-500.0,0.00045205,120]
[392070632,1761136148460,-500.0,0.00045205,30]
[392070633,1761136148502,-500.0,0.00045205,120]
[392070634,1761136148551,-959.74,0.00045205,120]
[392070635,1761136148593,-500.0,0.00045205,120]
[392070636,1761136148635,-629.63,0.00045205,120]
[392070637,1761136148677,-500.0,0.00045205,120]
[392070638,1761136148718,-500.0,0.00045205,120]
[392070639,1761136148760,-500.0,0.00045205,120]
[392070640,1761136148799,-500.0,0.00045205,120]
[392070641,1761136148839,-807.42,0.00045205,120]
[392070642,1761136148878,-500.0,0.00045205,120]
[392070643,1761136148917,-1040.88,0.00045205,120]
[392070644,1761136148958,-1060.98,0.00045205,120]
[392070645,1761136148998,-843.75,0.00045205,120]
[392070646,1761136149040,-500.0,0.00045205,90]
[392070647,1761136149080,-904.48,0.00045205,120]
[392070648,1761136149120,-500.0,0.00045205,120]
[392070649,1761136149160,-500.0,0.00045205,120]
[392070650,1761136149199,-500.0,0.00045205,120]
[392070651,1761136149241,-3305.92,0.00045205,120]
[392070652,1761136149278,-615.48,0.00045205,120]
[392070653,1761136149317,-1407.21,0.00045205,120]
[392070654,1761136149365,-682.22,0.00045205,120]
[392070655,1761136149403,-628.72,0.00045205,120]
[392070656,1761136149438,-568.21,0.00045205,120]
[392070657,1761136149472,-500.0,0.00045205,120]
[392070658,1761136149509,-1200.9,0.00045205,120]
[392070659,1761136149546,-500.0,0.00045205,120]
[392070660,1761136149585,-500.0,0.00045205,120]
[392070661,1761136149623,-932.59,0.00045205,120]
[392070662,1761136149659,-1170.48,0.00045205,120]
[392070663,1761136149695,-951.8,0.00045205,120]
[392070664,1761136149730,-500.0,0.00045205,120]
[392070665,1761136149764,-500.0,0.00045205,120]
[392070666,1761136149798,-500.0,0.00045205,120]
[392070667,1761136149832,-300.0,0.00045205,120]
[392070668,1761136149868,-1046.02,0.00045205,120]
[392070669,1761136149909,-500.0,0.00045205,120]
[392070670,1761136149951,-500.0,0.00045205,120]
[392070671,1761136149993,-606.94291602,0.00045205,120]
[392070672,1761136150035,-638.4,0.00045205,120]
[392070673,1761136150070,-1530.94,0.00045205,120]
[392070674,1761136150105,-1798.72,0.00045205,120]
[392070675,1761136150139,-500.0,0.00045205,120]
[392070676,1761136150174,-1270.99,0.00045205,120]
[392070677,1761136150208,-1501.03,0.00045205,120]
[392070678,1761136150244,-500.0,0.00045205,120]
[392070679,1761136150278,-1189.64,0.00045205,120]
[392070680,1761136150313,-1078.86,0.00045205,120]
[392070681,1761136150352,-940.69,0.00045205,120]
[392070682,1761136150387,-500.0,0.00045205,120]
[392070683,1761136150422,-500.0,0.00045205,120]
[392070684,1761136150455,-500.0,0.00045205,120]
[392070685,1761136150489,-925.82,0.00045205,120]
[392070686,1761136150525,-1280.38,0.00045205,120]
[392070687,1761136150562,-536.00996277,0.00045205,120]
[392070688,1761136150598,-500.0,0.00045205,120]
[392070689,1761136150633,-500.0,0.00045205,120]
[392070690,1761136150668,-500.0,0.00045205,120]
[392070691,1761136150704,-500.0,0.00045205,120]
[392070692,1761136150741,-830.71,0.00045205,120]
[392070693,1761136150776,-787.56,0.00045205,120]
[392070694,1761136150861,-760.46,0.00045205,120]
[392070695,1761136150897,-964.7,0.00045205,120]
[392070696,1761136150935,-2870.69,0.00045205,120]
[392070697,1761136150972,-1167.09,0.00045205,120]
[392070698,1761136151009,-1476.47,0.00045205,120]
[392070699,1761136151047,-500.0,0.00045205,120]
[392070700,1761136151083,-1391.79,0.00045205,120]
[392070701,1761136151118,-500.0,0.00045205,120]
[392070702,1761136151152,-500.0,0.00045205,120]
[392070703,1761136151187,-500.0,0.00045205,120]
[392070704,1761136151223,-500.0,0.00045205,120]
[392070705,1761136151258,-560.77,0.00045205,120]
[392070706,1761136151293,-836.47,0.00045205,120]
[392070707,1761136151331,-996.26,0.00045205,120]
[392070708,1761136151367,-1536.18,0.00045205,120]
[392070709,1761136151403,-500.0,0.00045205,120]
[392070710,1761136151439,-2863.84,0.00045205,30]
[392070711,1761136151475,-1637.97,0.00045205,120]
[392070712,1761136151512,-1166.77,0.00045205,120]
[392070713,1761136151547,-744.86,0.00045205,120]
[392070714,1761136151583,-500.0,0.00045205,120]
[392070715,1761136151620,-500.0,0.00045205,120]
[392070716,1761136151656,-1207.01,0.00045205,120]
[392070717,1761136151694,-500.0,0.00045205,120]
[392070718,1761136151729,-500.0,0.00045205,120]
[392070719,1761136151763,-933.44,0.00045205,120]
[392070720,1761136151798,-500.0,0.00045205,120]
[392070721,1761136151834,-500.0,0.00045205,120]
[392070722,1761136151873,-500.0,0.00045205,120]
[392070723,1761136151909,-506.79,0.00045205,120]
[392070724,1761136151943,-500.0,0.00045205,120]
[392070725,1761136151977,-500.0,0.00045205,120]
[392070726,1761136152012,-500.0,0.00045205,120]
[392070727,1761136152046,-500.0,0.00045205,120]
[392070728,1761136152081,-500.0,0.00045205,120]
[392070729,1761136152117,-500.0,0.00045205,120]
[392070730,1761136152152,-1178.29,0.00045205,120]
[392070731,1761136152186,-500.0,0.00045259,120]
[392070732,1761136152220,-802.44,0.00045259,120]
[392070733,1761136152252,-613.05060677,0.00045259,120]
[392070734,1761136152288,-2751.12,0.00045259,120]
[392070735,1761136152327,-500.0,0.00045259,120]
[392070736,1761136152368,-1384.27,0.00045259,120]
[392070737,1761136152414,-886.5,0.00045259,120]
[392070738,1761136152468,-500.0,0.00045259,120]
[392070739,1761136152507,-365.92897423,0.00045259,120]
[392070740,1761136152547,-500.0,0.00045259,120]
[392070741,1761136152581,-500.0,0.00045259,120]
[392070742,1761136152615,-2123.37,0.00045259,120]
[392070743,1761136152652,-500.0,0.00045259,120]
[392070744,1761136152684,-963.07,0.00045259,120]
[392070745,1761136152716,-1853.52,0.00045259,120]
[392070746,1761136152749,-500.0,0.00045259,120]
[392070747,1761136152783,-1338.38,0.00045259,120]
[392070748,1761136152816,-582.58,0.00045259,120]
[392070749,1761136152850,-500.0,0.00045259,120]
[392070750,1761136152882,-5164.0,0.00045259,120]
[392070751,1761136152919,-500.0,0.00045259,120]
[392070752,1761136152956,-500.0,0.00045259,120]
[392070753,1761136152992,-856.57,0.00045259,120]
[392070754,1761136153028,-562775.81835052,0.000453,120]
[392070757,1761136172306,-713.18900994,0.00034478,30]
[392070758,1761136172345,-713.18900994,0.00034478,30]
[392070759,1761136172385,-713.18900994,0.00034478,30]
[392070760,1761136172422,-713.18900994,0.00034478,30]
[392070761,1761136172458,-713.18900994,0.00034478,30]
[392070762,1761136172495,-713.18900994,0.00034478,30]
[392070763,1761136172532,-713.18900994,0.00034478,30]
[392070764,1761136172567,-713.18900994,0.00034478,30]
[392070765,1761136172601,-713.18900994,0.00034478,30]
[392070766,1761136172634,-713.18900994,0.00034478,30]
[392070767,1761136172668,-713.18900994,0.00034478,30]
[392070768,1761136172701,-713.18900994,0.00034478,30]
[392070769,1761136172734,-713.18900994,0.00034478,30]
[392070770,1761136172768,-713.18900994,0.00034478,30]
[392070771,1761136172804,-713.18900994,0.00034478,30]
[392070772,1761136172838,-713.18900994,0.00034478,30]
[392070773,1761136172872,-713.18900994,0.00034478,30]
[392070774,1761136172908,-713.18900994,0.00034478,30]
[392070775,1761136172943,-713.18900994,0.00034478,30]
[392070776,1761136172977,-713.18,0.00034478,30]
[392070777,1761136173017,-1664.10768986,0.00035964,30]
[392070778,1761136173053,-1664.10768986,0.00036408,30]
[392070779,1761136173088,-1664.10768986,0.00036852,30]
[392070780,1761136173124,-1664.10768986,0.00037296,30]
[392070781,1761136173160,-1664.10768986,0.0003774,30]
[392070782,1761136173198,-1664.10768986,0.00038184,30]
[392070783,1761136173235,-1664.10768986,0.00038628,120]
[392070784,1761136173272,-1664.10768986,0.00039072,120]
[392070785,1761136173312,-1664.10768986,0.00039516,120]
[392070786,1761136173350,-1664.10768986,0.0003996,120]
[392070787,1761136173388,-1664.10768986,0.00040404,120]
[392070788,1761136173425,-1664.10768986,0.00040848,120]
[392070789,1761136173460,-1664.10768986,0.00041292,120]
[392070790,1761136173495,-1664.10768986,0.00041736,120]
[392070791,1761136173530,-1664.10768986,0.0004218,120]
[392070792,1761136173567,-1664.10768986,0.00042624,120]
[392070793,1761136173602,-1664.10768986,0.00043068,120]
[392070794,1761136173638,-1664.10768986,0.00043512,120]
[392070795,1761136173674,-500.0,0.00043835,120]
[392070796,1761136173708,-500.0,0.00043835,120]
[392070797,1761136173744,-500.0,0.00043835,120]
[392070798,1761136173779,-878.7,0.00043835,120]
[392070799,1761136173813,-500.0,0.00043835,120]
[392070800,1761136173851,-500.0,0.00043835,120]
[392070801,1761136173892,-500.0,0.00043835,120]
[392070802,1761136173937,-500.0,0.00043835,120]
[392070803,1761136173977,-500.0,0.00043835,120]
[392070804,1761136174019,-500.0,0.00043835,120]
[392070805,1761136174062,-500.0,0.00043835,120]
[392070806,1761136174101,-500.0,0.00043835,120]
[392070807,1761136174143,-4752.5,0.00043835,120]
[392070808,1761136174183,-500.0,0.00043889,120]
[392070809,1761136174223,-500.0,0.00043889,120]
[392070810,1761136174261,-500.0,0.00043889,120]
[392070811,1761136174300,-500.0,0.00043889,120]
[392070812,1761136174340,-713.85,0.00043889,120]
[392070813,1761136174378,-500.0,0.00043889,120]
[392070814,1761136174416,-805.35,0.00043889,120]
[392070815,1761136174454,-500.0,0.00043889,120]
[392070816,1761136174490,-1664.10768986,0.00043956,120]
[392070817,1761136174526,-635.1711869,0.00044109,120]
[392070818,1761136174561,-878.7,0.00044109,120]
[392070819,1761136174596,-347.74640384,0.00044109,120]
[392070820,1761136174633,-500.0,0.00044109,120]
[392070821,1761136174671,-4752.5,0.00044109,120]
[392070822,1761136174704,-184.58,0.00044163,120]
[392070823,1761136174739,-713.85,0.00044163,120]
[392070824,1761136175002,-500.0,0.00044163,120]
[392070825,1761136175044,-805.35,0.00044163,120]
[392070826,1761136175085,-500.0,0.00044163,120]
[392070827,1761136175124,-878.7,0.00044383,120]
[392070828,1761136175164,-500.0,0.00044383,120]
[392070829,1761136175204,-4752.5,0.00044383,120]
[392070830,1761136175244,-1664.1,0.000444,120]
[392070831,1761136175284,-713.85,0.00044437,120]
[392070832,1761136175323,-500.0,0.00044437,120]
[392070833,1761136175367,-805.35,0.00044437,120]
[392070834,1761136175405,-500.0,0.00044437,120]
[392070835,1761136175443,-878.7,0.00044657,120]
[392070836,1761136175485,-500.0,0.00044657,120]
[392070837,1761136175525,-4752.5,0.00044657,120]
[392070838,1761136175574,-713.85,0.00044711,120]
[392070839,1761136175620,-500.0,0.00044711,120]
[392070840,1761136175660,-805.35,0.00044711,120]
[392070841,1761136175700,-500.0,0.00044711,120]
[392070842,1761136175740,-878.7,0.00044931,120]
[392070843,1761136175779,-500.0,0.00044931,120]
[392070844,1761136175820,-4752.5,0.00044931,120]
[392070845,1761136175856,-938.33,0.00044985,120]
[392070846,1761136175898,-713.85,0.00044985,120]
[392070847,1761136175937,-405.26391481,0.00044985,120]
[392070848,1761136175975,-805.35,0.00044985,120]
[392070849,1761136176014,-500.0,0.00044985,120]
[392070850,1761136176050,-158.439232,0.00045,120]
[392070851,1761136176085,-1000000.0,0.00045002,120]
[392070852,1761136176122,-1000000.0,0.0004501,120]
[392070853,1761136176163,-500000.0,0.0004503,120]
[392070854,1761136176200,-1000000.0,0.000452,120]
[392070855,1761136176239,-878.7,0.00045205,120]
[392070856,1761136176277,-500.0,0.00045205,120]
[392070857,1761136176317,-4752.5,0.00045205,120]
[392070858,1761136176360,-938.33,0.00045259,120]
[392070859,1761136176402,-713.85,0.00045259,120]
[392070860,1761136176445,-805.35,0.00045259,120]
[392070861,1761136176481,-500.0,0.00045259,120]
[392070862,1761136176517,-437224.18164948,0.000453,120]
[392070863,1761136176554,-150.0,0.00045315,120]
[392070864,1761136176588,-953569.64031677,0.000454,120]
[392070865,1761136180659,-294.73272232,0.00043835,120]
[392070866,1761136180695,-500.0,0.00043835,120]
[392070867,1761136180729,-1217.66,0.00043889,120]
[392070868,1761136180764,-500.0,0.00044109,120]
[392070869,1761136180797,-1217.66,0.00044163,120]
[392070870,1761136180832,-500.0,0.00044383,120]
[392070871,1761136180866,-1217.66,0.00044437,120]
[392070872,1761136180906,-500.0,0.00044657,120]
[392070873,1761136180944,-1217.66,0.00044711,120]
[392070874,1761136181046,-9294.15838243,0.0004475,120]
[392070875,1761136181082,-9294.15838243,0.00044756,120]
[392070876,1761136181117,-9294.15838243,0.00044791,120]
[392070877,1761136181156,-9294.15838243,0.00044919,120]
[392070878,1761136181194,-500.0,0.00044931,120]
[392070879,1761136181230,-1217.66,0.00044985,120]
[392070880,1761136181265,-1000000.0,0.00045,120]
[392070881,1761136181300,-1000000.0,0.0004504,120]
[392070882,1761136181338,-500.0,0.00045205,120]
[392070883,1761136181372,-1217.66,0.00045259,120]
[392070884,1761136181408,-46430.35968323,0.000454,120]
[392070885,1761136181442,-509304.5649,0.00045444,30]
[392070886,1761136181485,-943.68,0.00045479,120]
[392070887,1761136181525,-500.0,0.00045479,120]
[392070888,1761136181560,-1070.04,0.00045479,120]
[392070889,1761136181594,-813.58,0.00045479,120]
[392070890,1761136181629,-500.0,0.00045479,120]
[392070891,1761136181665,-500.0,0.00045479,120]
[392070892,1761136181700,-1065.48,0.00045479,120]
[392070893,1761136181736,-500.0,0.00045479,120]
[392070894,1761136181770,-548.57,0.00045479,120]
[392070895,1761136181804,-500.0,0.00045479,120]
[392070896,1761136181840,-500.0,0.00045479,120]
[392070897,1761136181880,-500.0,0.00045479,120]
[392070898,1761136181917,-652.14,0.00045479,120]
[392070899,1761136181955,-500.0,0.00045479,120]
[392070900,1761136181994,-500.0,0.00045479,120]
[392070901,1761136182031,-1160.59,0.00045479,120]
[392070902,1761136182066,-500.0,0.00045479,120]
[392070903,1761136182100,-630.1,0.00045479,120]
[392070904,1761136182133,-500.0,0.00045479,120]
[392070905,1761136182167,-790.48,0.00045479,120]
[392070906,1761136182201,-500.0,0.00045479,120]
[392070907,1761136182236,-501.67,0.00045479,120]
[392070908,1761136182271,-500.0,0.00045479,120]